{"text_format":"2","workbook":"xlsx","n_sheets":1,"sheets":["Master Headcount Plan"],"not_rendered":{"charts":0,"images":0,"macros":0,"external_links":0,"defined_names":0,"comments":1,"pivot_tables":0},"unopened":[],"bounds":{"document_bytes":16777216,"sheet_cells":100000,"run_cost":"one","rows_first":2000,"rows_last":500,"rows_between":2000,"halvings":0,"cell_chars":16384,"cell_head_chars":4096},"cells_cut":0,"cells_raw":0,"read":"whole","date_system":"1900"}

{"sheet":"Master Headcount Plan","index":0,"n_rows":21,"n_cols":18,"rows_kept":21,"cut":false,"hidden":false,"merged":[]}
["Requisition ID","Employee type","Ok to start recruiting?","Priority","Headcount type","Job title","Location ","Hiring Manager","Department","Job level","Hiring Health","Job Description ","ATS","Recruiter","Budget","Finance Approved","Open Date","Closed Date"]
[1.0,"Full-time",true,"P0","New Hire","Backend Developer","US East","Jeff Bezos","Engineering",6.0,{"$f":"IF(ISBLANK(O2), \"Not Approved\", \n   IF(TODAY() > Q2 - R2, \"Not on Track\", \n      IF(TODAY() >= Q2 - R2 - 14, \"Threat\", \n         \"On Track\"\n      )\n   )\n)","v":"On Track"},null,null,null,"100k",true,"2025-05-30"]
[2.0,"Full-time",false,"P2","New Hire","Marketing Manager","US West",null,"Marketing",5.0,"Not Approved",{"$nulls":4},false,"2025-01-17"]
[3.0,"Full-time",false,"P3","New Hire","Head of Customer Success","Remote",null,"Sales",8.0,"Not Approved",{"$nulls":4},false,"2025-01-02"]
[4.0,"Contract",false,"P1","Backfill",null,"EU",null,null,null,"Not Approved",{"$nulls":4},false]
[5.0,"Contract",false,"P3","Backfill",null,"US East",null,null,null,"Not Approved",{"$nulls":4},false]
[6.0,"Full-time",false,"P3","New Hire",null,"Remote",null,null,null,"Not Approved",{"$nulls":4},false]
[7.0,"Part-time",true,"P2","Backfill",null,"Remote",null,null,null,"Not Approved",{"$nulls":4},false]
[8.0,"Full-time",false,"P2","New Hire",null,"APAC",null,null,null,"Not Approved",{"$nulls":4},false]
[9.0,"Contract",false,"P3","New Hire",null,"LatAm",null,null,null,"Not Approved",{"$nulls":4},false]
[10.0,"Full-time",false,"P1","Backfill",null,"US East",null,null,null,"Not Approved",{"$nulls":4},false]
[11.0,"Full-time",true,"P2","New Hire",null,"US East",null,null,null,"Not Approved",{"$nulls":4},false]
[12.0,"Full-time",true,"P2","New Hire",null,"EU",null,null,null,"Not Approved",{"$nulls":4},false]
[13.0,"Contract",false,"P2","New Hire",null,"US West",null,null,null,"Not Approved",{"$nulls":4},false]
[14.0,"Part-time",false,"P3","New Hire",null,"Remote",null,null,null,"Not Approved",{"$nulls":4},false]
[15.0,"Part-time",false,"P2","New Hire",null,"Remote",null,null,null,"Not Approved",{"$nulls":4},false]
[16.0,"Full-time",false,"P1","New Hire",null,"APAC",null,null,null,"Not Approved",{"$nulls":4},false]
[17.0,"Contract",false,"P2","New Hire",null,"LatAm",null,null,null,"Not Approved",{"$nulls":4},false]
[18.0,"Part-time",false,"P1","Backfill",null,"LatAm",null,null,null,"Not Approved",{"$nulls":4},false]
[19.0,"Part-time",false,"P3","Backfill",null,"US East",null,null,null,"Not Approved",{"$nulls":4},false]
[20.0,"Full-time",false,"P1","New Hire",null,"US East",null,null,null,"Not Approved",{"$nulls":4},false]